Cogmind - Beta 17.1 @@@ ROGUE MODE // 2026.09.12 @ 02:44:59 Player: Turtle Result: Destroyed by S2-5TH(R) with Subdweller Laser Performance ------------- Evolutions (0) 0 Regions Visited (2) 400 Robots Destroyed (20) 100 Value Destroyed (283) 283 Prototype IDs (3) 60 Alien Tech Used (0) 0 Bonus (5970) 5970 TOTAL SCORE: 6813 Bonus ------- Prayed to X0-1V1 5000 Major X0-1V1 Interference 1000 Friendly Fire -30 Cogmind --------- Core Integrity 0/150 Matter 63/150 Energy 99/100 System Corruption 14% Temperature Cool (6) Movement Rolling (80) Location -10/Subcaves Parts ------- > --- POWER (1) -------- (None) > --- PROPULSION (1) --- Wheel > --- UTILITY (3) ------ Small Storage Unit X0-1V1's Piety Tracker > --- WEAPON (2) ------- Datajack > --- INVENTORY (8) ---- Wheel Compact Wheel High-capacity Matter Pod (121) Signal Interpreter ECM Suite Propulsion Shielding Peak State ------------ > --- POWER ------------ Light Nuclear Core > --- PROPULSION ------- Wheel Wheel > --- UTILITY ---------- Small Storage Unit X0-1V1's Piety Tracker > --- WEAPON ----------- Light Cannon Enhanced Flamer > --- INVENTORY -------- Wheel Compact Wheel High-capacity Matter Pod Signal Interpreter ECM Suite Propulsion Shielding Grenade Launcher Datajack [Rating: 23] Favorites ----------- Power Light Nuclear Core Engine Light Ion Engine Power Core Light Nuclear Core Propulsion Wheel Leg Aluminum Leg Wheel Wheel Utility Small Storage Unit Device X0-1V1's Piety Tracker Storage Small Storage Unit Weapon Light Cannon Ballistic Gun Assault Rifle Ballistic Cannon Light Cannon Launcher Grenade Launcher Special Weapon Enhanced Flamer Special Melee Weapon Datajack Build | -11 -10 -10 ------- Run | Yrd Mat Sub Slots Evolved . | . . . Power . | . . . Propulsion . | . . . Utility . | . . . Weapon . | . . . Parts Attached 21 | 10 7 4 Power 3 | 1 1 1 Engine 2 | 1 . 1 Core 1 | . 1 . Reactor . | . . . Propulsion 7 | 5 2 . Treads . | . . . Leg 1 | 1 . . Wheel 6 | 4 2 . Hover . | . . . Flight . | . . . Utility 4 | 2 2 . Device 3 | 1 2 . Storage 1 | 1 . . Processor . | . . . Hackware . | . . . Protection . | . . . Artifact . | . . . Weapon 7 | 2 2 3 Energy Gun . | . . . Energy Cannon . | . . . Ballistic Gun 2 | 2 . . Ballistic Cannon 2 | . 2 . Launcher 1 | . . 1 Special Weapon 1 | . . 1 Impact Weapon . | . . . Slashing Weapon . | . . . Piercing Weapon . | . . . Special Melee Weapon 1 | . . 1 Unidentified Prototypes 1 | . 1 . Parts Lost 4 | . . 4 Power 1 | . . 1 Propulsion . | . . . Utility . | . . . Weapon 3 | . . 3 Highest Loss Streak 2 | . . 2 To Critical Strikes . | . . . Average Backups 6 | 1 7 7 Power . | . . . Propulsion 2 | 1 2 2 Utility 2 | . 1 4 Weapon . | . 1 . Tool/Special . | . . . Unused Backups 10 | . 6 4 Power 1 | . 1 . Propulsion 3 | . 2 1 Utility 6 | . 3 3 Weapon . | . . . Tool/Special . | . . . Average Slot Usage (%) 98 | . 100 96 Engine 4 | . 4 5 Core 8 | . 10 6 Wheel 27 | . 28 26 Device 14 | . 14 14 Storage 14 | . 14 14 Ballistic Cannon 18 | . 26 9 Launcher 4 | . . 8 Special Weapon 4 | . . 8 Peak Build Rating 23 | 7 21 23 Average Rating 14 | 5 9 21 On Entrance 9 | . 7 21 Avg Prop Armor Cover (%) 8 | 8 . . Naked Turns . | . . . Heaviest Build 18 | 12 18 17 Greatest Support 32 | 32 20 20 Greatest Overweight (x) 1 | 1 . 1 Average Overweight (x) . | . . . Largest Inventory Capacity 8 | 8 8 8 Average Capacity 7 | 6 8 8 Most Carried 8 | 3 8 8 Average Carried 7 | 1 7 7 Final Capacity 8 | 8 8 8 Final Carried 8 | 3 8 6 Class Distribution -------------------- 100% | Mutant Dominant Class ---------------- Mutant | -10/Materials Mutant | -10/Subcaves Resources | -11 -10 -10 ----------- Run | Yrd Mat Sub Matter Collected 949 | 223 448 278 Remotely . | . . . Salvage Created 513 | 76 317 120 Parts 39 | 8 22 9 Haulers Intercepted 2 | . 2 . Recyclers Shooed . | . . . Parts Field Recycled . | . . . Retrieved Matter . | . . . Parts Self-Destructed 18 | . . 18 Prevented . | . . . Parts Restored . | . . . Kills | -11 -10 -10 ------- Run | Yrd Mat Sub Combat Hostiles Destroyed 11 | . 6 5 Cannons 9 | . 6 3 AOE 2 | . . 2 Classes Destroyed 9 | 2 5 2 Worker 2 | . 2 . Tunneler 2 | 1 1 . Hauler 2 | . 2 . Recycler 2 | 1 1 . Watcher 1 | . 1 . Swarmer 7 | . 3 4 Grunt 3 | . 3 . Cobbler 1 | . . 1 Subdweller 1 | . . 1 Best Kill Streak 5 | 1 5 5 Combat Bots Only 5 | . 4 5 Max Kills in Single Turn 2 | 1 1 2 Gunslinging . | . . . Exploded 2 | . . 2 Melee . | . . . Uniques/NPCs Destroyed . | . . . Combat | -11 -10 -10 -------- Run | Yrd Mat Sub Hostile Shots Fired 62 | . 40 22 Missed 23 | . 16 7 Hits 39 | . 24 15 Projectile 39 | . 24 15 AOE 3 | . . 3 Damage Taken 653 | . 231 422 Core 176 | . 10 166 Absorbed by Shields . | . . . Ignored by Resistances 10 | . . 10 Core Remaining (%) 100 | 100 . . Volleys Fired 57 | 3 29 25 Largest 2 | 2 2 2 Hottest 80 | 40 60 80 Shots Fired 96 | 6 57 33 Gun 6 | 6 . . Cannon 70 | . 57 13 Launcher 19 | . . 19 Special 1 | . . 1 Kinetic 76 | 6 57 13 Thermal 1 | . . 1 Explosive 19 | . . 19 Electromagnetic . | . . . Robot Hit Streak 6 | 2 6 4 Robot Miss Streak 5 | 1 5 2 Penetration Max . | . . . Secondary Targets . | . . . Shots Hit Robots 42 | 4 28 10 Core Hits 29 | 3 14 12 Critical Kills . | . . . Critical Parts Destroyed . | . . . Critical Strikes 2 | . 2 . Blast 2 | . 2 . Melee Attacks 1 | . . 1 Impact . | . . . Slashing . | . . . Piercing . | . . . Sneak Attacks . | . . . Combat Hostiles . | . . . Follow-up Attacks . | . . . Damage Inflicted 928 | 46 471 411 Guns 46 | 46 . . Cannons 610 | . 471 139 Explosions 272 | . . 272 Melee . | . . . Ramming . | . . . Kinetic 656 | 46 471 139 Thermal . | . . . Explosive 272 | . . 272 Electromagnetic . | . . . Impact . | . . . Slashing . | . . . Piercing . | . . . Highest Corruption 14 | . . 14 Average Corruption 14 | . . 14 Corruption Purged . | . . . Corruption Blocked . | . . . Effects 2 | . . 2 Matter Fused 1 | . . 1 Misfires 1 | . . 1 Overload Shots . | . . . Overflow Damage . | . . . Projectiles . | . . . Explosions . | . . . Melee . | . . . Knockbacks 3 | . 2 1 Impact . | . . . Kinetic 3 | . 2 1 Secondary . | . . . Self-Inflicted Damage 64 | . . 64 Shots 4 | . . 4 Rammed . | . . . Targets Rammed . | . . . Kicked . | . . . Crushed . | . . . Highest Temperature 48 | . 48 4 Average Temperature 12 | . 13 3 Received Heat Transfer 93 | . 69 24 Siege Activations . | . . . Martial Activations . | . . . Shielding Activations . | . . . Robots Disrupted . | . . . Combat Hostiles . | . . . Robots Corrupted . | . . . Combat Hostiles . | . . . Parts Fried . | . . . Impact Corruptions . | . . . Robots Melted . | . . . Combat Hostiles . | . . . Parts Melted . | . . . Heat Transferred . | . . . Parts Sabotaged . | . . . Parts Stolen . | . . . Parts Stripped . | . . . Power Chain Reactions . | . . . Alert | -11 -10 -10 ------- Run | Yrd Mat Sub Maximum Alert Level . | . . . Low Security (%) 100 | 100 100 . Level 1 . | . . . Level 2 . | . . . Level 3 . | . . . Level 4 . | . . . Level 5 . | . . . High Security . | . . . Max Security . | . . . Peak Influence 117 | 5 117 . Initial . | . . . Average 47 | . 58 . Influence Increases 349 | 10 259 80 Destroy 0b10 Robot/C 200 | . 120 80 Destroy 0b10 Robot/NC 45 | 10 35 . Destroy Leader 36 | . 36 . Successful Hack 8 | . 8 . Disable Machine 15 | . 15 . Partial Spotted 15 | . 15 . Lose Combat Pursuer 30 | . 30 . Influence Decreases 331 | 10 229 92 Entered New Map 15 | . . 15 Time Decay 286 | 10 229 47 Lost Part 30 | . . 30 Squads Dispatched 2 | . 2 . Investigation 1 | . 1 . Extermination . | . . . Reinforcement 1 | . 1 . Assault . | . . . Garrison . | . . . Intercept . | . . . Searches Triggered . | . . . Construction Impeded . | . . . Haulers Reinforced . | . . . Active Scanning Responses . | . . . Cargo Convoy Interrupts . | . . . Stealth | -11 -10 -10 --------- Run | Yrd Mat Sub Distress Signals 1 | . 1 . Communications Jammed . | . . . Distress Signals . | . . . Times Spotted 25 | . 16 9 Peak Tracking Total 5 | . 5 5 Tactical Retreats 4 | . 4 . ECM-based Alert Blocks 5 | . 5 . Traps | -11 -10 -10 ------- Run | Yrd Mat Sub Traps Triggered 2 | . 2 . Indirectly . | . . . Trap Hack Attempts . | . . . Triggered . | . . . Disarmed . | . . . Reprogrammed . | . . . Reused . | . . . Traps Extracted . | . . . Installed . | . . . Triggered . | . . . Machines | -11 -10 -10 ---------- Run | Yrd Mat Sub Machines Disabled 1 | . 1 . Max in Single Turn 1 | . 1 . Machines Repaired . | . . . Machines Dismantled . | . . . Machines Sabotaged . | . . . Overloaded Fab Kills . | . . . Hacking | -11 -10 -10 --------- Run | Yrd Mat Sub Machines Accessed 4 | . 4 . Terminals 4 | . 4 . Fabricators . | . . . Repair Stations . | . . . Recycling Units . | . . . Scanalyzers . | . . . Garrison Access . | . . . Total Hacks 11 | . 11 . Successful 6 | . 6 . Failed 5 | . 5 . Catastrophic . | . . . Database Lockouts . | . . . Manual 12 | . 12 . Terminals 11 | . 11 . Fabricators . | . . . Repair Stations . | . . . Recycling Units . | . . . Scanalyzers . | . . . Garrison Access . | . . . Terminal Hacks 3 | . 3 . Prototype ID Bank 1 | . 1 . Transport Status 1 | . 1 . Hauler Manifests 1 | . 1 . Fabricator Hacks . | . . . Repair Station Hacks . | . . . Recycling Unit Hacks . | . . . Scanalyzer . | . . . Garrison Access Hacks . | . . . Unauthorized Hacks 3 | . 3 . Terminals 3 | . 3 . Track 3 | . 3 . Fabricators . | . . . Repair Stations . | . . . Recycling Units . | . . . Scanalyzers . | . . . Garrison Access . | . . . Data Cores Recovered . | . . . Used . | . . . Hacking Detections 1 | . 1 . Full Trace Events . | . . . Feedback Events . | . . . Feedback Blocked . | . . . Robot Schematics Acquired . | . . . Robots Built . | . . . Authchips . | . . . Time . | . . . Total Robot Build Rating . | . . . Part Schematics Acquired . | . . . Parts Built . | . . . Authchips . | . . . Time . | . . . Total Part Build Rating . | . . . Part Studies Acquired . | . . . Parts Repaired . | . . . Time . | . . . Parts Recycled . | . . . Recycled Matter . | . . . Retrieved Matter . | . . . Retrieved Components . | . . . Parts Scanalyzed . | . . . Part Schematics Acquired . | . . . Parts Damaged . | . . . Bothacking | -11 -10 -10 ------------ Run | Yrd Mat Sub Used RIF Installer . | . . . Robots Hacked 1 | . . 1 Non-combat . | . . . Combat 1 | . . 1 Robot Hacks Applied 1 | . . 1 parse_system 1 | . . 1 Relay Couplers Released . | . . . Fabnet Peak Effective % . | . . . Robots Rewired . | . . . Allies Hacked . | . . . Hacks Repelled . | . . . Allies | -11 -10 -10 -------- Run | Yrd Mat Sub Total Allies . | . . . Largest Group . | . . . Highest-Rated Group . | . . . Highest-Rated Ally . | . . . Total Orders . | . . . Ally Attacks . | . . . Total Damage . | . . . Kills . | . . . Allies Corrupted . | . . . Allies Melted . | . . . X0-1V1 Amusement Gains 26 | . 6 20 Average Entertainment 4 | . 6 4 Good Acts 2 | . . 2 Bad Acts 10 | . . 10 Intel | -11 -10 -10 ------- Run | Yrd Mat Sub Active Infowar (turns) 562 | 38 524 . Seismic 134 | 38 96 . ECM 428 | . 428 . Robot Analysis Total . | . . . Derelict Logs Recovered . | . . . Drone Launches . | . . . Drone Recoveries . | . . . Exploration | -11 -10 -10 ------------- Run | Yrd Mat Sub Turns Passed 1217 | 123 551 543 Spaces Moved 1123 | 89 459 575 Core 2 | 2 . . Treads . | . . . Legs 28 | 28 . . Wheels 1093 | 59 459 575 Hover . | . . . Flight . | . . . Fastest Speed 50 | 50 80 80 Average Speed 82 | 101 80 80 Slowest Speed 190 | 190 80 95 Overloaded Moves . | . . . Propulsion Burnouts . | . . . Robots Hopped . | . . . Potential Cave-ins . | . . . Cave-ins Triggered . | . . . Exploration Rate (%) 40 | 6 78 37 Regions Visited 2 Branch Regions 1 Pre-discovered Areas . | . . . Known Exits Taken . | . . . Unknown Exits Taken 2 | 1 1 . Scrap Searched . | . . . Spaces Dug . | . . . Terrain Destroyed 88 | . . 88 Melee . | . . . Projectile . | . . . AOE 88 | . . 88 Terrain Rammed . | . . . Walls Destroyed . | . . . Machines Disabled . | . . . Actions | -11 -10 -10 --------- Run | Yrd Mat Sub Total 1317 | 110 590 617 Wait 78 | 1 68 9 Move 1121 | 88 458 575 Hop . | . . . Pick Up 17 | 3 14 . Fast Attach 9 | 7 2 . Attach 3 | 1 . 2 Detach 1 | 1 . . Swap 18 | 6 7 5 Drop 12 | . 12 . Fire 57 | 3 29 25 Melee 1 | . . 1 Ram . | . . . Kick . | . . . Crush . | . . . Escape Stasis . | . . . Rewire . | . . . Trap . | . . . Miscellaneous . | . . . Route ------- -11/Scrapyard -10/Materials (discovered 4 exits: [*Mat x2] / [*Min] / [*Sub]) -10/Subcaves History --------- Turn | Location | Event 13 | -11/Scrapyard | Discovered new exit (range 16) 124 | -11/Scrapyard | Entered Materials 226 | -10/Materials | Discovered new exit (range 14) 310 | -10/Materials | Build established: Mutant 328 | -10/Materials | Discovered new exit (range 7) 562 | -10/Materials | Discovered new exit (range 16) 641 | -10/Materials | Discovered new exit (range 5) 645 | -10/Materials | Prayed at D.C.S.S. Altar Unit 675 | -10/Materials | Entered Subcaves 676 | -10/Subcaves | Approached by a straggling Scientist 713 | -10/Subcaves | EX resistance permanently improved by X0-1V1 (+10%; -100 max core) 791 | -10/Subcaves | A swath of the cavern ceiling suddenly collapsed 870 | -10/Subcaves | Curiously followed by a Cobbler waking with a query about "LVR3C" 894 | -10/Subcaves | A swath of the cavern ceiling suddenly collapsed 1144 | -10/Subcaves | X0-1V1 sent hostile S-10 Pest (x5) 1163 | -10/Subcaves | X0-1V1 mutated your Propulsion slot to Utility slot 1189 | -10/Subcaves | System corruption reached 10% 1203 | -10/Subcaves | Ambushed by Subdwellers from Twisted Machinery 1209 | -10/Subcaves | Core integrity fell below 50% 1211 | -10/Subcaves | Core integrity fell below 20% 1218 | -10/Subcaves | Destroyed by S2-5TH(R) with Subdweller Laser Last Messages --------------- 01167_ Flight Unit fries itself beyond repair. 01167_ Acquired 9 matter. 01170_ Acquired 5 matter. 01188_ X0-1V1 brushes you with a corrupting influence (+14 system corruption). 01194_ System corrupted: FCS attempts to trigger Lgt. Cannon. 01194_ System corrupted: Lgt. Cannon misfires. 01203_ S2-5TH(R) emerges from the Twisted Machinery. 01204_ Grenade Launcher destroyed. 01206_ Lgt. Cannon destroyed. 01206_ X0-1V1 is amused. 01209_ System corrupted: Matter fused (-8). 01213_ Jacked S2-5TH(R)... >>parse_system Reading system data... 01215_ X0-1V1: "Dakka mode, ENGAGE!" (-10% melee accuracy) 01218_ X0-1V1 chortles! Map ----- +----------------------------------------------------+ | | | | | | | ?????????????????????????????????????????????????? | | ?????????????????????????????????????????????????? | | ?????????????????????????????????????????????????? | | ?????????????????????????????????????????????????? | | ?????????????????????????????????????????????????? | | ?????????????????????????????????????????????????? | | ?????????????????????????????????????????????????? | | ?????????????????????????????????????????????????? | | ?????????????????????????????????????????????????? | | ?????????????????????????????????????????????????? | | ?????????????????????????????????????????????????? | | ?????????????????????????????????????????????????? | | ?????????????????????????????????????????????????? | | ?????????????????????????????????????????????????? | | ????????????????????????????????????????####?###?? | | ?????????????????????????????????????#### ### ### | | ????????????????????????????????###??# " " " # | | ???????????????????????????###### #??#"""" | | ??????????????????????????## "#### " | | ???????????????????#???#### R ; # ## | | ???????????????????# ## ###? | | ?????????????????### R ###??? | | ??????????????# @ #????? | | ????????????# $ #????? | | ????????????# ##### #????? | | ???????????# # ## ## ##???##" #????? | | ??????????? ???????#??###????# "##????? | | ????????????????????????????# "#?????? | | ????????????????????????????#### ##?????? | | ???????????????????????????????## ## #?????? | | ????????????????????????????????##### #????? | | ????????????????????????????????????# ##????? | | ????????????????????????????????????# ##?????? | | ????????????????????????????????????# ##??????? | | ????????????????????????????????????## #???????? | | ?????????????????????????????????????## ##????#### | | ???????????????????????????????????????##????## | | ?????????????????????????????????????????????# | | ??????????????????????????????????????????#### | | ?????????????????????????????????????????## ## | | ?????????????????????????????????????????# | | ?????????????????????????????????????????# | | ?????????????????????????????????????????# | | ???????????????????????????????????????### | | ???????????????????????????????????????# | | ???????????????????????????????????????## | | ????????????????????????????????????????# | +----------------------------------------------------+ Best States ------------- Heat Dissipation 25 Energy Generation 15 Energy Capacity 200 Matter Stores 300 Matter Capacity 300 Sight Range 16 Terrain Scan Density 10 ECM Strength 1 Resistance: EX 10 Evasion (%) 45 Item Schematics ----------------- None Robot Schematics ------------------ None Fabricated ------------ Nothing Repaired ---------- Nothing Studied --------- None Alien Tech Used ----------------- None Achievements -------------- Art Critic Chaos Is Inevitable Challenges ------------ None Game ------ Seed FactoryArmorWings Manual? 0 Play Time 00:26:29 Cumulative 39.9 hours Start 2026.09.12 @ 02:17:13 End 2026.09.12 @ 02:44:59 Sessions 1 Manual Loads 0 Difficulty Rogue Special Mode None Game No. 52 Rogue 52 Adventurer 0 Explorer 0 Win Type - Total 0 Types 0/0/0/0/0/0/0/0/0/0 Lore% 16 Gallery% 23 Achievement% 18 Wizard Run 0 Options --------- Layout 1 ASCII 0 Keyboard 1 Movement Arrows Keybinds 0 Fullscreen 1 Font 24/Smallcaps Map View 50x35 Zoom Use 0% Tactical HUD 1 Map Filters NONE Filters NONE Steam 1 RUN: 69aa138d-bcac-40b1-b7cd-40d5cfb54e26